fUSD/lending_fUSD_20240502
["ID","MTS","AMOUNT","RATE_DAILY","PERIOD"]
[325252965,1714658132737,-4000.0,0.000119,2]
[325252966,1714658133201,-4000.0,0.000119,2]
[325252967,1714658133661,-4000.0,0.000119,2]
[325252968,1714658134174,-4000.0,0.000119,2]
[325252969,1714658134750,-4000.0,0.000119,2]
[325252970,1714658135506,-4000.0,0.000119,2]
[325252971,1714658136280,-4000.0,0.000119,2]
[325252972,1714658136771,-4000.0,0.000119,2]
[325252973,1714658137323,-4000.0,0.000119,2]
[325252974,1714658138284,-4000.0,0.000119,2]
[325252975,1714658138887,-4000.0,0.000119,2]
[325252976,1714658139504,-4000.0,0.000119,2]
[325252977,1714658140082,-4000.0,0.000119,2]
[325252978,1714658140630,-4000.0,0.000119,2]
[325252979,1714658141177,-4000.0,0.000119,2]
[325252980,1714658141744,-4000.0,0.000119,2]
[325252981,1714658142944,-4000.0,0.000119,2]
[325252982,1714658143587,-4000.0,0.000119,2]
[325252983,1714658144174,-4000.0,0.000119,2]
[325252984,1714658151517,-370.0,0.000119,2]
[325252985,1714658176701,-4000.0,0.000119,2]
[325252986,1714658177233,-4000.0,0.000119,2]
[325252987,1714658177785,-4000.0,0.000119,2]
[325252988,1714658178760,-4000.0,0.000119,2]
[325252989,1714658179390,-4000.0,0.000119,2]
[325252990,1714658180042,-4000.0,0.000119,2]
[325252991,1714658180588,-4000.0,0.000119,2]
[325252992,1714658181215,-4000.0,0.000119,2]
[325253004,1714659032480,-160.49400001,0.00011599,2]
[325253005,1714659032490,-160.49399999,0.0001165,2]
[325253006,1714659032499,-155.0,0.00011698,2]
[325253007,1714659032509,-2457.92884557,0.00011699,2]
[325253008,1714659032562,-1730.297936,0.00011699,2]
[325253009,1714659032673,-401.67141174,0.00011699,2]
[325253010,1714659032685,-620.10180669,0.00011699,2]
[325253011,1714659032695,-160.49399999,0.000117,2]
[325253012,1714659032705,-166.96379572,0.000118,2]
[325253013,1714659032714,-248.04,0.0001189,2]
[325253014,1714659032724,-10738.61582409,0.000119,2]
[325253066,1714659042352,-294.91,0.000119,2]
[325253067,1714659042365,-501.91562055,0.000119,2]
[325253068,1714659042486,-3234.79929208,0.000119,2]
[325253100,1714659043075,-189458.42649202,0.000119,2]
[325253101,1714659043085,-289.87978023,0.000119,2]
[325253102,1714659043095,-35207.85266452,0.000119,2]
[325253103,1714659043106,-5857.31131299,0.000119,2]
[325253104,1714659043120,-35556.50712728,0.000119,2]
[325253107,1714659047738,-2148.52848,0.000119,2]
[325253108,1714659047750,-1841.93369985,0.000119,2]
[325253115,1714660235315,-562.94562231,0.00011558,2]
[325253116,1714660235383,-2934.25382374,0.00011558,2]
[325253117,1714660235393,-924.88598057,0.00011627,2]
[325253118,1714660235405,-635.15270295,0.00011627,2]
[325253119,1714660235415,-185.66929705,0.000119,2]
[325253126,1714660239606,-4421.757422,0.000115,2]
[325253127,1714660239617,-3660.07446266,0.000119,2]
[325253128,1714660239630,-100262.76780209,0.000119,2]
[325253129,1714660239639,-4187.808,0.000119,2]
[325253130,1714660239650,-930.55555,0.000119,2]
[325253131,1714660239661,-1000.0,0.00012,2]
[325253132,1714660239670,-10502.86864807,0.000129,2]
[325253143,1714660240463,-272.66263437,0.000129,2]
[325253145,1714660240475,-446.3391758,0.000129,2]
[325253146,1714660240879,-3536.44282716,0.000129,2]
[325253147,1714660240891,-874.40717284,0.000129,2]
[325253158,1714660241049,-783.03824515,0.000129,2]
[325253159,1714660241062,-934.85,0.000129,2]
[325253180,1714660244323,-5867.28159661,0.000129,2]
[325253181,1714660244332,-1178.74858595,0.00012999,3]
[325253182,1714660244342,-23500.78024386,0.00013,2]
[325253185,1714660244894,-2439.98182319,0.00013,2]
[325253186,1714660244938,-294.61029046,0.00013,2]
[325253187,1714660244951,-2955.67955936,0.00013,2]
[325253189,1714660248642,-522.93853237,0.00013,2]
[325253198,1714660248911,-90237.37775647,0.00013,2]
[325253199,1714660248921,-27322.62224356,0.00013,2]
[325253200,1714660248933,-1898.23381044,0.00013,2]
[325253201,1714660248944,-1188.35,0.00013,2]
[325253202,1714660248956,-55348.91545164,0.00013,2]
[325253203,1714660248965,-300.0,0.00013,2]
[325253204,1714660248975,-930.55556,0.000169,2]
[325253205,1714660248984,-4377.52898835,0.00018,2]
[325253313,1714661432850,-155.0,0.00012896,2]
[325253315,1714661432860,-9632.57405993,0.00012899,2]
[325253318,1714661433187,-829.72,0.00012899,2]
[325253319,1714661433199,-13769.49722274,0.00012899,2]
[325253320,1714661433209,-6754.5911,0.000129,2]
[325253321,1714661433220,-150.0,0.00016546,3]
[325253322,1714661433230,-1000.0,0.00017259,2]
[325253323,1714661433239,-150.0,0.00017698,2]
[325253324,1714661433248,-2812.33093615,0.00017702,2]
[325253325,1714661433320,-684.8685099,0.00017702,2]
[325253326,1714661433330,-397.47101165,0.00018,2]
[325253327,1714661433339,-200.0,0.00018,2]
[325253328,1714661433349,-620.37037,0.00018,2]
[325253329,1714661433359,-3316.63,0.00018,2]
[325253330,1714661433369,-1207.76794595,0.00018,2]
[325253331,1714661433378,-1002.0,0.000181,2]
[325253332,1714661433388,-614.61537828,0.0002,15]
[325253333,1714661433397,-150.0,0.00020026,2]
[325253334,1714661433407,-150.0,0.00020443,2]
[325253335,1714661433416,-150.0,0.00020869,2]
[325253336,1714661433425,-150.0,0.00021304,2]
[325253337,1714661433434,-161.39,0.00021644,2]
[325253338,1714661433444,-223.45,0.00021644,2]
[325253339,1714661433453,-407.2,0.00021644,2]
[325253341,1714661433462,-150.0,0.00021748,2]
[325253343,1714661433474,-150.0,0.00022201,2]
[325253345,1714661433483,-150.0,0.00022664,2]
[325253347,1714661433498,-1250.0,0.00023,3]
[325253348,1714661433508,-620.37037,0.00023,2]
[325253350,1714661433518,-150.0,0.00023136,2]
[325253353,1714661433528,-150.0,0.00023618,2]
[325253354,1714661433538,-150.0,0.0002411,2]
[325253357,1714661433547,-150.0,0.00024612,2]
[325253358,1714661433558,-155.0,0.00025,2]
[325253360,1714661433567,-293.29822192,0.00025,2]
[325253363,1714661433577,-2212.20569301,0.00025,2]
[325253364,1714661433587,-500.0,0.00025,2]
[325253367,1714661433597,-443.481164,0.00025,2]
[325253368,1714661433606,-1300.0,0.00025,3]
[325253371,1714661433616,-471.2169433,0.00025,2]
[325253372,1714661433625,-2606.85980791,0.00025,2]
[325253374,1714661433634,-248.77,0.00025965,2]
[325253377,1714661433644,-491.57,0.00026155,2]
[325253379,1714661433653,-200.0,0.00026248,2]
[325253381,1714661433662,-4415.42,0.0002628,2]
[325253382,1714661433672,-250.0,0.00026312,2]
[325253384,1714661433681,-200.0,0.00026381,2]
[325253386,1714661433690,-172.29,0.00026402,120]
[325253388,1714661433700,-2456.7,0.00026405,2]
[325253390,1714661433710,-657.32,0.00026407,2]
[325253392,1714661433721,-500.0,0.0002641,2]
[325253394,1714661433730,-250.0,0.00026411,2]
[325253396,1714661433739,-250.0,0.00026429,2]
[325253398,1714661433748,-441.48,0.00026448,2]
[325253400,1714661433758,-1151.1,0.00026469,2]
[325253402,1714661433767,-150.0,0.00026477,30]
[325253404,1714661433776,-168.96,0.00026576,2]
[325253406,1714661433785,-176.69,0.00026676,120]
[325253408,1714661433795,-151.99,0.00026781,2]
[325253409,1714661433803,-155.0,0.00027,2]
[325253410,1714661433812,-1350.0,0.00027,3]
[325253411,1714661433821,-167.55,0.00027078,2]
[325253412,1714661433830,-150.57,0.00027397,2]
[325253413,1714661433838,-407.2,0.00027714,2]
[325253414,1714661433847,-620.37037,0.00028,2]
[325253415,1714661433857,-1000.0,0.000283,2]
[325253416,1714661433865,-168.37,0.00028662,2]
[325253417,1714661433873,-168.37,0.00028682,2]
[325253418,1714661433882,-168.37,0.00028702,2]
[325253420,1714661433891,-168.37,0.00028723,2]
[325253421,1714661433900,-168.37,0.00028743,2]
[325253423,1714661433909,-168.37,0.00028764,2]
[325253425,1714661433919,-168.37,0.00028784,2]
[325253427,1714661433928,-168.37,0.00028805,2]
[325253429,1714661433941,-1400.0,0.00029,3]
[325253432,1714661433950,-248.77,0.0002921,2]
[325253434,1714661433960,-150.57,0.00029354,2]
[325253435,1714661433973,-2028.24,0.0002999,10]
[325253437,1714661433981,-150.0,0.0003,17]
[325253440,1714661433990,-5675.33834492,0.0003,2]
[325253442,1714661434000,-19342.27079902,0.0003,4]
[325253443,1714661434009,-774.05040688,0.00030211,4]
[325253445,1714661434018,-1385.7943526,0.00030211,60]
[325253447,1714661434027,-180.0,0.00030258,2]
[325253449,1714661434036,-150.0,0.00030954,2]
[325253451,1714661434045,-1450.0,0.00031,3]
[325253453,1714661434054,-151.99,0.00031245,2]
[325253455,1714661434063,-150.57,0.00031311,2]
[325253457,1714661434072,-332.59159891,0.00032,4]
[325253459,1714661434081,-248.77,0.00032456,2]
[325253461,1714661434090,-5000.0,0.00033,21]
[325253463,1714661434099,-1500.0,0.00033,3]
[325253465,1714661434109,-620.37038,0.00033,2]
[325253467,1714661434118,-150.57,0.00033268,2]
[325253469,1714661434127,-407.2,0.00033785,2]
[325253471,1714661434137,-5000.0,0.00034,21]
[325253473,1714661434146,-515.691039,0.0003433,120]
[325253475,1714661434156,-29710.88,0.00034627,5]
[325253477,1714661434166,-4002.9167,0.000348,2]
[325253479,1714661434176,-1499.3016,0.000348,2]
[325253481,1714661434185,-172.1292167,0.000348,2]
[325253483,1714661434195,-463.85,0.00034899,2]
[325253485,1714661434205,-463.85,0.00034899,2]
[325253487,1714661434215,-463.85,0.00034899,2]
[325253489,1714661434231,-463.85,0.00034899,2]
[325253491,1714661434244,-463.85,0.00034899,2]
[325253494,1714661434255,-463.85,0.00034899,2]
[325253496,1714661434266,-463.85,0.00034899,2]
[325253497,1714661434276,-463.85,0.00034899,2]
[325253499,1714661434286,-463.85,0.00034899,2]
[325253501,1714661434297,-463.85,0.00034899,2]
[325253503,1714661434307,-46871.5129,0.000349,2]
[325253506,1714661434321,-12186.703,0.000349,2]
[325253508,1714661434331,-31822.3553,0.000349,2]
[325253510,1714661434341,-16382.75138592,0.00034998,6]
[325253512,1714661434351,-2499.33914115,0.00034998,2]
[325253514,1714661434361,-3446.49669182,0.00034998,4]
[325253516,1714661434371,-242.48853934,0.00034998,4]
[325253518,1714661434381,-1171.81270543,0.00034999,30]
[325253520,1714661434390,-50000.0,0.00035,15]
[325253522,1714661434400,-6897.89011219,0.00035,25]
[325253648,1714661438789,-592.56,0.00012898,2]
[325253652,1714661438812,-733.25812272,0.00012898,2]
[325253654,1714661438822,-43102.10988781,0.00035,25]
[325253656,1714661438831,-74142.49609642,0.00035,2]
[325253717,1714661440402,-155.0,0.000209,2]
[325253718,1714661440412,-19469.21839273,0.00035,2]
[325253932,1714661443447,-2000.0,0.00034693,120]
[325253933,1714661443457,-1690.2,0.0003499,10]
[325253934,1714661443467,-596.53,0.00034999,4]
[325253935,1714661443480,-128545.25870864,0.00035,2]
[325253936,1714661443490,-29208.99476558,0.00035,4]
[325253937,1714661443504,-155.0,0.00035,15]
[325253938,1714661443513,-1550.0,0.00035,3]
[325253939,1714661443523,-208.424732,0.00035,7]
[325253940,1714661443533,-208.424732,0.00035,7]
[325253941,1714661443545,-151.0,0.00035,7]
[325253942,1714661443555,-2312.26,0.00035,21]
[325253943,1714661443564,-6977.85984952,0.00035,7]
[325253944,1714661443575,-153.0,0.00035225,5]
[325253945,1714661443585,-150.57,0.00035225,2]
[325253946,1714661443594,-172.12921667,0.00035306,2]
[325253947,1714661443604,-500.0,0.00035616,7]
[325253948,1714661443613,-197.72,0.00035616,7]
[325253949,1714661443622,-641.79,0.00035616,7]
[325253950,1714661443632,-248.77,0.00035701,2]
[325253951,1714661443641,-151.99,0.00035708,2]
[325253952,1714661443650,-172.12921667,0.00035812,2]
[325253953,1714661443661,-669.88517726,0.0003584,10]
[325253954,1714661443670,-1000.0,0.00035873,15]
[325253955,1714661443680,-500.0,0.00035873,10]
[325253956,1714661443689,-200.0,0.00035873,10]
[325253957,1714661443699,-1000.0,0.00035873,15]
[325253958,1714661443709,-1000.0,0.00035874,15]
[325253959,1714661443719,-1000.0,0.00035874,15]
[325253960,1714661443729,-500.0,0.00035874,10]
[325253961,1714661443739,-500.0,0.00035874,10]
[325253962,1714661443748,-200.0,0.00035874,10]
[325253963,1714661443757,-220.8136875,0.00035888,30]
[325253964,1714661443767,-10000.0,0.00035888,30]
[325253965,1714661443777,-1000.0,0.00035953,2]
[325253966,1714661443787,-617.83,0.00035999,2]
[325253967,1714661443796,-50000.0,0.00036,16]
[325253968,1714661443805,-50000.0,0.00036,26]
[325253969,1714661443815,-3000.0,0.00036,2]
[325253970,1714661443825,-4034.0,0.00036,2]
[325253971,1714661443835,-4034.0,0.00036,2]
[325253972,1714661443844,-4034.0,0.00036,2]
[325253973,1714661443853,-4034.0,0.00036,2]
[325253974,1714661443863,-4034.0,0.00036,2]
[325253975,1714661443872,-4034.0,0.00036,2]
[325253976,1714661443881,-4034.0,0.00036,2]
[325253977,1714661443891,-4034.0,0.00036,2]
[325253979,1714661443900,-4034.0,0.00036,2]
[325253981,1714661443910,-4034.0,0.00036,2]
[325253983,1714661443919,-5350.0,0.00036,30]
[325253985,1714661443929,-155.0,0.00036,7]
[325253987,1714661443939,-208.424732,0.00036,7]
[325253989,1714661443948,-208.424732,0.00036,7]
[325253991,1714661443958,-208.424732,0.00036,7]
[325253993,1714661443967,-208.424732,0.00036,7]
[325253995,1714661443976,-151.0,0.00036,7]
[325253997,1714661443986,-151.0,0.00036,7]
[325253999,1714661443995,-213.0,0.00036037,2]
[325254001,1714661444004,-168.96756408,0.00036062,8]
[325254003,1714661444013,-210.7807826,0.00036062,2]
[325254005,1714661444022,-1174.84107386,0.00036064,8]
[325254007,1714661444033,-150.0,0.000361,25]
[325254009,1714661444043,-492.74773615,0.00036137,120]
[325254011,1714661444052,-41454.63267792,0.00036137,2]
[325254013,1714661444061,-155.0,0.00036137,2]
[325254015,1714661444070,-965.69275442,0.00036137,4]
[325254017,1714661444080,-1341.53372041,0.00036137,4]
[325254019,1714661444089,-1605.82144297,0.00036137,5]
[325254021,1714661444098,-155.0,0.0003616,4]
[325254023,1714661444108,-5262.48961046,0.0003616,4]
[325254025,1714661444117,-157.36593396,0.0003616,4]
[325254027,1714661444127,-1245.40892367,0.00036161,4]
[325254029,1714661444136,-539.48320845,0.00036161,4]
[325254031,1714661444146,-271210.51858641,0.00036162,11]
[325254072,1714661444848,-305.31955761,0.00036162,11]
[325254076,1714661444884,-22700.20021375,0.00036162,11]
[325254192,1714662631726,-552.67791872,0.00013,2]
[325254196,1714662638053,-9987.23755261,0.00013,2]
[325254197,1714662638121,-6153.24337718,0.00013,2]
[325254198,1714662638135,-3174.3361109,0.00013,2]
[325254199,1714662638147,-3204.73067741,0.00013,2]
[325254200,1714662638161,-2208.1150035,0.00013,2]
[325254201,1714662638175,-768.81954782,0.00013,2]
[325254202,1714662638186,-300.0,0.000171,2]
[325254203,1714662638197,-976.0,0.000172,2]
[325254204,1714662638213,-396.18045218,0.000183,2]
[325254205,1714662639741,-1633.67955862,0.000183,2]
[325254206,1714662639753,-260.02868165,0.000183,2]
[325254207,1714662640186,-2008.11130755,0.000183,2]
[325254209,1714662640195,-18933.60490722,0.00019,5]
[325254568,1714662643688,-4437.88429943,0.00019,5]
[325254570,1714662643698,-604.28,0.00019726,2]
[325254572,1714662643711,-155.0,0.000209,2]
[325254574,1714662643720,-161.39,0.00021644,2]
[325254576,1714662643729,-651.46482467,0.00023879,2]
[325254578,1714662643739,-172.12921667,0.0002388,2]
[325254580,1714662643748,-1000.0,0.00023914,2]
[325254582,1714662643757,-100439.61935159,0.0002398,2]
[325254584,1714662643767,-250.0,0.00029061,2]
[325254586,1714662643776,-2000.0,0.00029207,2]
[325254588,1714662643785,-157.56,0.00029985,2]
[325254590,1714662643795,-5675.33834492,0.0003,2]
[325254592,1714662643808,-19342.27079902,0.0003,4]
[325254594,1714662643818,-774.05040688,0.0003,4]
[325254597,1714662643828,-172.12921667,0.00030607,2]
[325254599,1714662643837,-500.0,0.00030691,2]
[325254601,1714662643847,-151.99,0.00030728,2]
[325254603,1714662643855,-2000.0,0.00030909,3]
[325254605,1714662643866,-200.0,0.00030909,2]
[325254607,1714662643875,-150.57,0.00031047,2]
[325254609,1714662643885,-1000.0,0.00032099,2]
[325254611,1714662643897,-180.0,0.00032583,2]
[325254613,1714662643907,-515.691039,0.00034354,120]
[325254615,1714662643916,-248.77,0.0003463,2]
[325254617,1714662643926,-500.0,0.00034697,2]
[325254619,1714662643937,-25001.06634081,0.00034797,4]
[325254621,1714662643947,-3378.5697,0.000348,2]
[325254623,1714662643957,-1102.86576743,0.00034998,4]
[325254625,1714662643971,-50000.0,0.00035,15]
[325254627,1714662643983,-50000.0,0.00035,25]
[325254628,1714662643993,-25208.03087057,0.00035,5]
[325254629,1714662644019,-613.18715928,0.00035,5]
[325254732,1714662645883,-592.97358,0.00035,5]
[325254733,1714662645897,-3409.16839015,0.00035,5]
[325254734,1714662645909,-2521.43344653,0.00035,5]
[325254735,1714662646078,-26573.87655347,0.00035,5]
[325254736,1714662646088,-17221.37040854,0.0003538,4]
[325254737,1714662646101,-4054.38111993,0.0003538,4]
[325254788,1714663832133,-155.0,0.00011993,2]
[325254789,1714663832143,-155.0,0.00011994,2]
[325254790,1714663832152,-546.05317817,0.00011995,2]
[325254791,1714663832161,-317.0,0.00011999,2]
[325254792,1714663832171,-2139.0,0.00012,2]
[325254793,1714663832181,-1000.0,0.00012896,2]
[325254794,1714663832190,-150.0,0.00012897,2]
[325254795,1714663832201,-150.0,0.00017063,3]
[325254796,1714663832210,-434.30988311,0.00017155,2]
[325254797,1714663832223,-5000.0,0.00017156,2]
[325254798,1714663832232,-2055.25356005,0.00017157,2]
[325254799,1714663832242,-300.0,0.00017158,2]
[325254800,1714663832251,-155.0,0.000209,2]
[325254801,1714663832260,-1875.328182,0.00021249,2]
[325254802,1714663832270,-1875.328182,0.00021515,2]
[325254803,1714663832280,-1875.328182,0.00021781,2]
[325254804,1714663832289,-785.62293984,0.00022,2]
[325254805,1714663832300,-1875.328182,0.00022046,2]
[325254806,1714663832310,-1000.0,0.00022207,2]
[325254807,1714663832319,-1875.328182,0.00022312,2]
[325254808,1714663832329,-1250.0,0.00023,3]
[325254809,1714663832338,-5800.0,0.00023966,2]
[325254810,1714663832347,-5800.0,0.00023975,2]
[325254811,1714663832357,-5800.0,0.00023983,2]
[325254812,1714663832366,-5800.0,0.00023992,2]
[325254813,1714663832376,-5800.0,0.00024,2]
[325254814,1714663832386,-1300.0,0.00025,3]
[325254815,1714663832395,-6644.39960948,0.00026962,2]
[325254816,1714663832404,-1350.0,0.00027,3]
[325254817,1714663832414,-150.0,0.00028855,2]
[325254818,1714663832423,-150.57,0.00029473,2]
[325254819,1714663832433,-304.0323,0.00029521,2]
[325254820,1714663832443,-250.0,0.00029621,2]
[325254821,1714663832454,-2561.16279284,0.0003,5]
[325254822,1714663832464,-19342.27079902,0.0003,4]
[325254823,1714663832473,-774.05040688,0.0003,4]
[325254824,1714663832483,-5675.33834492,0.0003,2]
[325254825,1714663832492,-165.27,0.00030164,2]
[325254826,1714663832501,-1027.94,0.00030323,10]
[325254827,1714663832510,-17651.01,0.00030333,2]
[325254828,1714663832520,-250.0,0.00030544,2]
[325254829,1714663832529,-500.0,0.00030553,2]
[325254830,1714663832538,-167.05,0.00030558,2]
[325254831,1714663832547,-180.61,0.00030567,2]
[325254832,1714663832557,-2000.0,0.00030692,2]
[325254833,1714663832566,-200.0,0.00030758,2]
[325254834,1714663832575,-500.0,0.00030759,2]
[325254835,1714663832585,-164.84,0.00030965,2]
[325254836,1714663832594,-152.92,0.00031623,2]
[325254837,1714663832603,-152.92,0.00031643,2]
[325254838,1714663832613,-152.92,0.00031663,2]
[325254839,1714663832622,-152.92,0.00031683,2]
[325254840,1714663832632,-152.92,0.00031702,2]
[325254841,1714663832641,-200.0,0.00031716,2]
[325254842,1714663832650,-152.92,0.00031722,2]
[325254843,1714663832660,-152.92,0.00031742,2]
[325254844,1714663832670,-190.76,0.00031745,120]
[325254845,1714663832679,-152.92,0.00031762,2]
[325254846,1714663832689,-152.92,0.00031781,2]
[325254847,1714663832700,-522.46,0.00031795,2]
[325254848,1714663832710,-300.47,0.00031795,2]
[325254849,1714663832720,-150.0,0.00031795,2]
[325254850,1714663832730,-150.0,0.00031795,2]
[325254851,1714663832739,-150.0,0.00031795,2]
[325254852,1714663832749,-3000.0,0.00032,5]
[325254853,1714663832758,-164.84,0.00032578,2]
[325254854,1714663832773,-541.0,0.00032622,2]
[325254855,1714663832782,-515.691039,0.00033611,120]
[325254856,1714663832792,-180.0,0.00033785,2]
[325254857,1714663832801,-1999.89651016,0.00034354,2]
[325254858,1714663832811,-167.05,0.00034378,2]
[325254859,1714663832820,-1560.03868352,0.0003462,2]
[325254860,1714663832830,-3497.19944605,0.00034766,2]
[325254861,1714663832839,-206.79012,0.000348,2]
[325254862,1714663832848,-3100.0,0.000349,2]
[325254863,1714663832858,-3000.0,0.00035,7]
[325254864,1714663832867,-502.58674056,0.00035,30]
[325254865,1714663832877,-29208.99476558,0.00035,4]
[325254866,1714663832886,-172.12921667,0.0003528,2]
[325254867,1714663832896,-492.74773615,0.0003538,120]
[325254868,1714663832906,-155.0,0.0003538,2]
[325254869,1714663832915,-1605.82144297,0.0003538,5]
[325254870,1714663832925,-500.0,0.0003538,5]
[325254871,1714663832934,-155.0,0.0003538,2]
[325254872,1714663832944,-2972.25333034,0.0003538,4]
[325254873,1714663832956,-394.06670891,0.0003538,4]
[325254874,1714663832965,-155.0,0.0003538,2]
[325254875,1714663832974,-500.0,0.0003538,2]
[325254876,1714663832984,-500.0,0.0003538,2]
[325254877,1714663832993,-500.0,0.0003538,2]
[325254878,1714663833003,-500.0,0.0003538,2]
[325254879,1714663833012,-500.0,0.0003538,2]
[325254880,1714663833021,-500.0,0.0003538,2]
[325254881,1714663833031,-5795.87544,0.00035381,120]
[325254882,1714663833040,-2186.0,0.00035616,10]
[325254883,1714663833050,-6501.38648378,0.0003581,2]
[325254884,1714663833059,-1000.0,0.00035873,15]
[325254885,1714663833068,-500.0,0.00035873,10]
[325254886,1714663833077,-1000.0,0.00035874,15]
[325254887,1714663833087,-1000.0,0.00035874,15]
[325254888,1714663833096,-500.0,0.00035874,10]
[325254889,1714663833105,-500.0,0.00035874,10]
[325254890,1714663833114,-200.0,0.00035874,10]
[325254891,1714663833123,-367.2116,0.000359,2]
[325254892,1714663833133,-1000.0,0.000359,2]
[325254893,1714663833142,-1229.6258,0.000359,2]
[325254894,1714663833151,-264.0822,0.000359,2]
[325254895,1714663833160,-1000.0,0.000359,2]
[325254896,1714663833170,-165.67,0.00035999,2]
[325254897,1714663833179,-165.67,0.00035999,2]
[325254898,1714663833188,-165.67,0.00035999,2]
[325254899,1714663833198,-165.67,0.00035999,2]
[325254900,1714663833208,-165.67,0.00035999,2]
[325254901,1714663833217,-165.67,0.00035999,2]
[325254902,1714663833228,-165.67,0.00035999,2]
[325254903,1714663833238,-500.0,0.00035999,7]
[325254904,1714663833247,-50000.0,0.00036,16]
[325254905,1714663833257,-50000.0,0.00036,26]
[325254906,1714663833266,-2000.0,0.00036,7]
[325254907,1714663833275,-308.76784164,0.00036058,2]
[325254908,1714663833285,-7500.0,0.00036058,2]
[325254909,1714663833294,-171.25018801,0.00036064,8]
[325254910,1714663833304,-4613.74283554,0.00036064,8]
[325254911,1714663833314,-208.08093124,0.00036064,2]
[325254912,1714663833550,-202.20660029,0.00036064,10]
[325254913,1714663833560,-354.22672244,0.00036064,2]
[325254914,1714663833570,-150.0,0.000361,8]
[325254915,1714663833580,-150.01,0.00036136,2]
[325254916,1714663833589,-5852.87851409,0.00036136,2]
[325254917,1714663833599,-308.76784163,0.00036149,2]
[325254918,1714663833608,-1000.0,0.00036157,2]
[325254919,1714663833618,-1000.0,0.00036157,2]
[325254920,1714663833627,-1000.0,0.00036157,2]
[325254921,1714663833636,-1000.0,0.00036157,2]
[325254922,1714663833646,-1000.0,0.00036157,2]
[325254923,1714663833655,-1015.0,0.00036157,2]
[325254924,1714663833664,-500.0,0.00036157,7]
[325254925,1714663833675,-173.92,0.00036157,7]
[325254926,1714663833685,-214016.24305579,0.00036158,4]
[325254927,1714663834398,-3487.819144,0.00036158,4]
[325254928,1714663834408,-1130.1942864,0.00036158,4]
[325254929,1714663834420,-291.44373864,0.00036158,4]
[325254936,1714663843306,-150.01,0.00036156,2]
[325254938,1714663843317,-282.20890264,0.00036156,2]
[325254940,1714663843329,-2904.05202929,0.00036158,4]
[325254942,1714663843343,-843.44924348,0.00036158,4]
[325254968,1714663843589,-5353.96070318,0.00036158,4]
[325254970,1714663843599,-380.18686318,0.0003616,4]
[325254972,1714663843608,-424.30408995,0.0003616,4]
[325254974,1714663843618,-5844.39999999,0.0003616,4]
[325254976,1714663843627,-266.209288,0.0003616,15]
[325254978,1714663843637,-2499.33914115,0.0003616,2]
[325254980,1714663843647,-111.04433341,0.0003616,10]
[325254982,1714663843659,-637.93610932,0.0003616,10]
[325254984,1714663843668,-1000.0,0.0003616,2]
[325254986,1714663843679,-1000.0,0.0003616,2]
[325254988,1714663843689,-1000.0,0.0003616,2]
[325254989,1714663843698,-1000.0,0.0003616,2]
[325254990,1714663843708,-1015.0,0.0003616,2]
[325254992,1714663843718,-752.81730665,0.00036161,4]
[325254994,1714663843728,-615.47656314,0.00036161,60]
[325254996,1714663843737,-155.00000039,0.00036161,4]
[325254997,1714663843746,-7719.70461898,0.00036161,4]
[325255020,1714663846216,-405.8384,0.00036153,10]